fUST/lending_fUST_20250603
["ID","MTS","AMOUNT","RATE_DAILY","PERIOD"]
[363952311,1748945433522,-440.0,0.00016438,2]
[363952312,1748945433532,-470.0,0.00016438,2]
[363952313,1748945433542,-430.56797011,0.00016438,2]
[363952314,1748945433551,-440.0,0.00016438,2]
[363952315,1748945433561,-194.80779855,0.00016438,2]
[363952316,1748945433571,-440.0,0.00016438,2]
[363952317,1748945433581,-430.0,0.00016438,2]
[363952318,1748945433590,-440.0,0.00016438,2]
[363952319,1748945433600,-430.0,0.00016438,2]
[363952320,1748945433610,-440.0,0.00016438,2]
[363952321,1748945433619,-430.0,0.00016438,2]
[363952322,1748945433629,-430.0,0.00016438,2]
[363952323,1748945433642,-552.01713512,0.00016438,2]
[363952324,1748945433651,-440.0,0.00016438,2]
[363952325,1748945433662,-440.0,0.00016438,2]
[363952326,1748945433673,-191.42443319,0.00016438,2]
[363952327,1748945433683,-218.27678321,0.00016438,2]
[363952328,1748945433693,-430.0,0.00016438,2]
[363952329,1748945433703,-430.0,0.00016438,2]
[363952330,1748945433713,-430.0,0.00016438,2]
[363952331,1748945433723,-430.0,0.00016438,2]
[363952332,1748945433733,-440.0,0.00016438,2]
[363952333,1748945433742,-440.0,0.00016438,2]
[363952334,1748945433752,-417.76,0.00016438,2]
[363952335,1748945433761,-573.29179263,0.00016438,2]
[363952336,1748945433771,-440.0,0.00016438,2]
[363952337,1748945433781,-449.52,0.00016438,2]
[363952338,1748945433790,-430.0,0.00016438,2]
[363952339,1748945433799,-440.0,0.00016438,2]
[363952340,1748945433808,-440.0,0.00016438,2]
[363952341,1748945433816,-440.0,0.00016438,2]
[363952342,1748945433825,-391.21854392,0.00016438,2]
[363952343,1748945433834,-440.0,0.00016438,2]
[363952344,1748945433844,-440.0,0.00016438,2]
[363952345,1748945433854,-440.0,0.00016438,2]
[363952346,1748945433864,-430.0,0.00016438,2]
[363952347,1748945433874,-440.0,0.00016438,2]
[363952348,1748945433887,-507.67681305,0.00016438,2]
[363952349,1748945433894,-440.0,0.00016438,2]
[363952350,1748945433902,-430.0,0.00016438,2]
[363952351,1748945433916,-220.0,0.00016438,2]
[363952352,1748945433926,-359.63860025,0.00016438,2]
[363952353,1748945433936,-440.0,0.00016438,2]
[363952354,1748945433946,-440.0,0.00016438,2]
[363952355,1748945433957,-440.0,0.00016438,2]
[363952356,1748945433967,-430.0,0.00016438,2]
[363952357,1748945433977,-440.0,0.00016438,2]
[363952358,1748945433987,-440.0,0.00016438,2]
[363952359,1748945433997,-440.0,0.00016438,2]
[363952360,1748945434007,-440.0,0.00016438,2]
[363952361,1748945434017,-440.0,0.00016438,2]
[363952362,1748945434038,-430.0,0.00016438,2]
[363952363,1748945434049,-896.47,0.00016438,2]
[363952364,1748945434060,-430.0,0.00016438,2]
[363952365,1748945434071,-440.0,0.00016438,2]
[363952366,1748945434081,-430.0,0.00016438,2]
[363952367,1748945434091,-440.0,0.00016438,2]
[363952368,1748945434102,-440.0,0.00016438,2]
[363952369,1748945434112,-440.0,0.00016438,2]
[363952370,1748945434122,-440.0,0.00016438,2]
[363952371,1748945434133,-563.32927075,0.00016438,2]
[363952372,1748945434145,-440.0,0.00016438,2]
[363952373,1748945434155,-517.32,0.00016438,2]
[363952374,1748945434166,-440.0,0.00016438,2]
[363952375,1748945434177,-440.0,0.00016438,2]
[363952376,1748945434187,-440.0,0.00016438,2]
[363952377,1748945434197,-440.0,0.00016438,2]
[363952378,1748945434209,-440.0,0.00016438,2]
[363952379,1748945434220,-430.75912179,0.00016438,2]
[363952380,1748945434230,-440.0,0.00016438,2]
[363952381,1748945434241,-440.0,0.00016438,2]
[363952382,1748945434250,-452.66,0.00016438,2]
[363952383,1748945434261,-440.0,0.00016438,2]
[363952384,1748945434271,-440.0,0.00016438,2]
[363952385,1748945434282,-440.0,0.00016438,2]
[363952386,1748945434292,-440.0,0.00016438,2]
[363952387,1748945434302,-430.0,0.00016438,2]
[363952388,1748945434312,-440.0,0.00016438,2]
[363952389,1748945434322,-440.0,0.00016438,2]
[363952390,1748945434333,-442.41,0.00016438,2]
[363952391,1748945434343,-1275.44,0.00016438,2]
[363952392,1748945434353,-395.34589444,0.00016438,2]
[363952393,1748945434363,-517.8481705,0.00016438,2]
[363952394,1748945434374,-2083.51,0.00016438,2]
[363952395,1748945434384,-440.0,0.00016438,2]
[363952396,1748945434396,-430.0,0.00016438,2]
[363952397,1748945434407,-560.01,0.00016438,2]
[363952398,1748945434418,-1680.21,0.00016438,2]
[363952399,1748945434428,-440.0,0.00016438,2]
[363952400,1748945434438,-440.0,0.00016438,2]
[363952401,1748945434448,-440.0,0.00016438,2]
[363952402,1748945434457,-440.0,0.00016438,2]
[363952403,1748945434467,-531.9,0.00016438,2]
[363952404,1748945434477,-291.41388107,0.00016438,2]
[363952405,1748945434486,-440.0,0.00016438,2]
[363952406,1748945434496,-440.0,0.00016438,2]
[363952407,1748945434506,-440.0,0.00016438,2]
[363952408,1748945434516,-440.0,0.00016438,2]
[363952409,1748945434525,-647.62,0.00016438,2]
[363952410,1748945434534,-647.62,0.00016438,2]
[363952411,1748945434544,-498.31,0.00016438,2]
[363952412,1748945434554,-647.62,0.00016438,2]
[363952413,1748945434563,-647.62,0.00016438,2]
[363952414,1748945434573,-647.62,0.00016438,2]
[363952415,1748945434582,-647.62,0.00016438,2]
[363952416,1748945434592,-647.62,0.00016438,2]
[363952417,1748945434602,-440.0,0.00016438,2]
[363952418,1748945434611,-352.75920492,0.00016438,2]
[363952419,1748945434621,-440.0,0.00016438,2]
[363952420,1748945434632,-440.0,0.00016438,2]
[363952421,1748945434642,-302.05228082,0.00016438,2]
[363952422,1748945434652,-224.65117827,0.00016438,2]
[363952423,1748945434662,-420.0,0.00016438,2]
[363952424,1748945434671,-440.0,0.00016438,2]
[363952425,1748945434680,-440.0,0.00016438,2]
[363952426,1748945434690,-440.0,0.00016438,2]
[363952427,1748945434699,-440.0,0.00016438,2]
[363952428,1748945434708,-440.0,0.00016438,2]
[363952429,1748945434717,-440.0,0.00016438,2]
[363952430,1748945434727,-2838.58,0.00016438,2]
[363952431,1748945434736,-440.0,0.00016438,2]
[363952432,1748945434745,-440.0,0.00016438,2]
[363952433,1748945434755,-440.0,0.00016438,2]
[363952434,1748945434764,-440.0,0.00016438,2]
[363952435,1748945434773,-440.0,0.00016438,2]
[363952436,1748945434783,-440.0,0.00016438,2]
[363952437,1748945434793,-420.0,0.00016438,2]
[363952438,1748945434800,-440.0,0.00016438,2]
[363952439,1748945434809,-459.56,0.00016438,2]
[363952440,1748945434817,-410.0,0.00016438,2]
[363952441,1748945434986,-460.0,0.00016438,2]
[363952442,1748945434998,-420.0,0.00016438,2]
[363952443,1748945435010,-420.0,0.00016438,2]
[363952444,1748945435020,-314.82145463,0.00016438,2]
[363952445,1748945435030,-3028.77,0.00016438,2]
[363952446,1748945435040,-420.0,0.00016438,2]
[363952447,1748945435054,-420.0,0.00016438,2]
[363952448,1748945435064,-222.62,0.00016438,2]
[363952449,1748945435075,-410.0,0.00016438,2]
[363952450,1748945435087,-440.0,0.00016438,2]
[363952451,1748945435097,-223.61063108,0.00016438,2]
[363952452,1748945435107,-440.0,0.00016438,2]
[363952453,1748945435116,-430.0,0.00016438,2]
[363952454,1748945435126,-440.0,0.00016438,2]
[363952455,1748945435135,-440.0,0.00016438,2]
[363952456,1748945435147,-2422.06,0.00016438,2]
[363952457,1748945435156,-440.0,0.00016438,2]
[363952458,1748945435167,-440.0,0.00016438,2]
[363952459,1748945435177,-440.0,0.00016438,2]
[363952460,1748945435187,-440.0,0.00016438,2]
[363952461,1748945435197,-1859.59,0.00016438,2]
[363952462,1748945435207,-440.0,0.00016438,2]
[363952463,1748945435217,-1140.72,0.00016438,2]
[363952464,1748945435227,-420.0,0.00016438,2]
[363952465,1748945435236,-440.0,0.00016438,2]
[363952466,1748945435247,-430.0,0.00016438,2]
[363952467,1748945435257,-518.89,0.00016438,2]
[363952468,1748945435267,-440.0,0.00016438,2]
[363952469,1748945435277,-512.59,0.00016438,2]
[363952470,1748945435288,-440.0,0.00016438,2]
[363952471,1748945435298,-1769.54,0.00016438,2]
[363952472,1748945435307,-764.36,0.00016438,2]
[363952473,1748945435317,-440.0,0.00016438,2]
[363952474,1748945435327,-440.0,0.00016438,2]
[363952475,1748945435337,-440.0,0.00016438,2]
[363952476,1748945435347,-430.0,0.00016438,2]
[363952477,1748945435357,-440.0,0.00016438,2]
[363952478,1748945435366,-440.0,0.00016438,2]
[363952479,1748945435376,-814.68,0.00016438,2]
[363952480,1748945435386,-440.0,0.00016438,2]
[363952481,1748945435397,-1480.6,0.00016438,2]
[363952482,1748945435407,-440.0,0.00016438,2]
[363952483,1748945435417,-440.0,0.00016438,2]
[363952484,1748945435426,-430.0,0.00016438,2]
[363952485,1748945435436,-440.0,0.00016438,2]
[363952486,1748945435446,-397.11612023,0.00016438,2]
[363952487,1748945435456,-430.0,0.00016438,2]
[363952488,1748945435466,-793.63,0.00016438,2]
[363952489,1748945435475,-431.95384334,0.00016438,2]
[363952490,1748945435486,-440.0,0.00016438,2]
[363952491,1748945435496,-435.18193568,0.00016438,2]
[363952492,1748945435507,-440.0,0.00016438,2]
[363952493,1748945435516,-440.0,0.00016438,2]
[363952494,1748945435525,-450.0,0.00016438,2]
[363952495,1748945435534,-440.0,0.00016438,2]
[363952496,1748945435543,-1408.68,0.00016438,2]
[363952497,1748945435553,-470.69,0.00016438,2]
[363952498,1748945435562,-440.0,0.00016438,2]
[363952499,1748945435571,-440.0,0.00016438,2]
[363952500,1748945435580,-440.0,0.00016438,2]
[363952501,1748945435589,-430.0,0.00016438,2]
[363952502,1748945435599,-440.0,0.00016438,2]
[363952503,1748945435608,-522.08,0.00016438,2]
[363952504,1748945435618,-1348.84,0.00016438,2]
[363952505,1748945435628,-226.25089325,0.00016438,2]
[363952506,1748945435637,-423.95202497,0.00016438,2]
[363952507,1748945435647,-440.0,0.00016438,2]
[363952508,1748945435657,-440.0,0.00016438,2]
[363952509,1748945435667,-430.0,0.00016438,2]
[363952510,1748945435677,-430.0,0.00016438,2]
[363952511,1748945435687,-564.73,0.00016438,2]
[363952512,1748945435696,-1238.06,0.00016438,2]
[363952513,1748945435706,-1259.13,0.00016438,2]
[363952514,1748945435716,-440.0,0.00016438,2]
[363952515,1748945435726,-440.0,0.00016438,2]
[363952516,1748945435736,-440.0,0.00016438,2]
[363952517,1748945435746,-454.71493068,0.00016438,2]
[363952518,1748945435755,-440.0,0.00016438,2]
[363952519,1748945435765,-400.59629711,0.00016438,2]
[363952520,1748945435775,-440.0,0.00016438,2]
[363952521,1748945435785,-589.57,0.00016438,2]
[363952522,1748945435795,-440.0,0.00016438,2]
[363952523,1748945435809,-430.0,0.00016438,2]
[363952524,1748945435819,-434.37531508,0.00016438,2]
[363952525,1748945435828,-11985.28,0.00016438,2]
[363952526,1748945435838,-440.0,0.00016438,2]
[363952527,1748945435847,-171.75565178,0.00016475,2]
[363952528,1748945435857,-3667.11274004,0.00016612,2]
[363952529,1748945435867,-171.75565178,0.00016612,2]
[363952530,1748945435876,-647.62,0.00016711,2]
[363952531,1748945435885,-647.62,0.00016711,2]
[363952532,1748945435897,-647.62,0.00016711,2]
[363952533,1748945435906,-19546.79952156,0.00016712,3]
[363952534,1748945435918,-214.09144544,0.00016712,2]
[363952535,1748945435927,-440.0,0.00016712,2]
[363952536,1748945435937,-440.0,0.00016712,2]
[363952537,1748945435946,-257.53953565,0.00016712,2]
[363952538,1748945435957,-440.0,0.00016712,2]
[363952539,1748945435965,-440.0,0.00016712,2]
[363952540,1748945435975,-440.0,0.00016712,2]
[363952541,1748945435985,-440.0,0.00016712,2]
[363952542,1748945435995,-409.1014355,0.00016712,2]
[363952543,1748945436005,-440.0,0.00016712,2]
[363952544,1748945436014,-420.0,0.00016712,2]
[363952545,1748945436023,-420.0,0.00016712,2]
[363952546,1748945436032,-440.0,0.00016712,2]
[363952547,1748945436042,-440.0,0.00016712,2]
[363952548,1748945436051,-422.72494564,0.00016712,2]
[363952549,1748945436061,-440.0,0.00016712,2]
[363952550,1748945436071,-420.0,0.00016712,2]
[363952551,1748945436081,-420.0,0.00016712,2]
[363952552,1748945436091,-440.0,0.00016712,2]
[363952553,1748945436101,-440.0,0.00016712,2]
[363952554,1748945436112,-440.0,0.00016712,2]
[363952555,1748945436122,-420.0,0.00016712,2]
[363952556,1748945436133,-492.0793356,0.00016712,2]
[363952557,1748945436143,-440.0,0.00016712,2]
[363952558,1748945436153,-440.0,0.00016712,2]
[363952559,1748945436163,-351.26527999,0.00016712,2]
[363952560,1748945436172,-440.0,0.00016712,2]
[363952561,1748945436182,-440.0,0.00016712,2]
[363952562,1748945436192,-440.0,0.00016712,2]
[363952563,1748945436201,-440.0,0.00016712,2]
[363952564,1748945436212,-353.93507252,0.00016712,2]
[363952565,1748945436222,-448.93238934,0.00016712,2]
[363952566,1748945436232,-440.0,0.00016712,2]
[363952567,1748945436242,-440.0,0.00016712,2]
[363952568,1748945436251,-440.0,0.00016712,2]
[363952569,1748945436261,-440.0,0.00016712,2]
[363952570,1748945436270,-480.0,0.00016712,2]
[363952571,1748945436279,-420.0,0.00016712,2]
[363952572,1748945436290,-440.0,0.00016712,2]
[363952573,1748945436299,-401.26695898,0.00016712,2]
[363952574,1748945436309,-440.0,0.00016712,2]
[363952575,1748945436319,-440.0,0.00016712,2]
[363952576,1748945436330,-215.1268,0.00016712,2]
[363952577,1748945436341,-440.72880569,0.00016712,2]
[363952578,1748945436350,-449.52,0.00016712,2]
[363952579,1748945436360,-440.0,0.00016712,2]
[363952580,1748945436369,-440.0,0.00016712,2]
[363952581,1748945436379,-501.12658918,0.00016712,2]
[363952582,1748945436388,-440.0,0.00016712,2]
[363952583,1748945436399,-440.0,0.00016712,2]
[363952584,1748945436408,-440.0,0.00016712,2]
[363952585,1748945436418,-440.0,0.00016712,2]
[363952586,1748945436427,-420.0,0.00016712,2]
[363952587,1748945436437,-491.69200944,0.00016712,2]
[363952588,1748945436447,-440.0,0.00016712,2]
[363952589,1748945436456,-440.0,0.00016712,2]
[363952590,1748945436465,-339.64031325,0.00016712,2]
[363952591,1748945436474,-420.0,0.00016712,2]
[363952592,1748945436483,-440.0,0.00016712,2]
[363952593,1748945436493,-896.47,0.00016712,2]
[363952594,1748945436503,-378.56434652,0.00016712,2]
[363952595,1748945436513,-440.0,0.00016712,2]
[363952596,1748945436522,-420.0,0.00016712,2]
[363952597,1748945436532,-440.0,0.00016712,2]
[363952598,1748945436541,-440.0,0.00016712,2]
[363952599,1748945436550,-440.0,0.00016712,2]
[363952600,1748945436560,-517.32,0.00016712,2]
[363952601,1748945436569,-440.0,0.00016712,2]
[363952602,1748945436578,-440.0,0.00016712,2]
[363952603,1748945436587,-399.09785039,0.00016712,2]
[363952604,1748945436597,-420.0,0.00016712,2]
[363952605,1748945436605,-420.0,0.00016712,2]
[363952606,1748945436615,-440.0,0.00016712,2]
[363952607,1748945436624,-440.0,0.00016712,2]
[363952608,1748945436633,-452.66,0.00016712,2]
[363952609,1748945436644,-440.0,0.00016712,2]
[363952610,1748945436655,-440.0,0.00016712,2]
[363952611,1748945436664,-440.0,0.00016712,2]
[363952612,1748945436674,-508.79,0.00016712,2]
[363952613,1748945436683,-440.0,0.00016712,2]
[363952614,1748945436693,-420.0,0.00016712,2]
[363952615,1748945436702,-442.41,0.00016712,2]
[363952616,1748945436710,-1275.44,0.00016712,2]
[363952617,1748945436718,-440.0,0.00016712,2]
[363952618,1748945436725,-2083.51,0.00016712,2]
[363952619,1748945436732,-560.01,0.00016712,2]
[363952620,1748945436739,-1680.21,0.00016712,2]
[363952621,1748945436747,-440.0,0.00016712,2]
[363952622,1748945436756,-280.0,0.00016712,2]
[363952623,1748945436764,-440.0,0.00016712,2]
[363952624,1748945436774,-440.0,0.00016712,2]
[363952625,1748945436783,-531.9,0.00016712,2]
[363952626,1748945436793,-426.68893584,0.00016712,2]
[363952627,1748945436803,-440.0,0.00016712,2]
[363952628,1748945436812,-440.0,0.00016712,2]
[363952629,1748945436822,-440.0,0.00016712,2]
[363952630,1748945436831,-498.31,0.00016712,2]
[363952631,1748945436841,-440.0,0.00016712,2]
[363952632,1748945436851,-440.0,0.00016712,2]
[363952633,1748945436861,-440.0,0.00016712,2]
[363952634,1748945436871,-440.0,0.00016712,2]
[363952635,1748945436881,-440.0,0.00016712,2]
[363952636,1748945436892,-440.0,0.00016712,2]
[363952637,1748945436901,-397.44528553,0.00016712,2]
[363952638,1748945436912,-440.0,0.00016712,2]
[363952639,1748945436924,-2838.58,0.00016712,2]
[363952640,1748945436934,-440.0,0.00016712,2]
[363952641,1748945436944,-430.0,0.00016712,2]
[363952642,1748945436953,-440.0,0.00016712,2]
[363952643,1748945436964,-440.0,0.00016712,2]
[363952644,1748945436974,-440.0,0.00016712,2]
[363952645,1748945436983,-440.0,0.00016712,2]
[363952646,1748945436994,-440.0,0.00016712,2]
[363952647,1748945437005,-459.56,0.00016712,2]
[363952648,1748945437015,-3028.77,0.00016712,2]
[363952649,1748945437025,-390.0,0.00016712,2]
[363952650,1748945437034,-440.0,0.00016712,2]
[363952651,1748945437044,-410.0,0.00016712,2]
[363952652,1748945437054,-400.0,0.00016712,2]
[363952653,1748945437064,-2422.06,0.00016712,2]
[363952654,1748945437074,-440.0,0.00016712,2]
[363952655,1748945437087,-420.0,0.00016712,2]
[363952656,1748945437097,-440.0,0.00016712,2]
[363952657,1748945437107,-440.0,0.00016712,2]
[363952658,1748945437116,-1859.59,0.00016712,2]
[363952659,1748945437126,-440.0,0.00016712,2]
[363952660,1748945437135,-1140.72,0.00016712,2]
[363952661,1748945437147,-440.0,0.00016712,2]
[363952662,1748945437156,-518.89,0.00016712,2]
[363952663,1748945437165,-330.88184397,0.00016712,2]
[363952664,1748945437175,-512.59,0.00016712,2]
[363952665,1748945437185,-440.0,0.00016712,2]
[363952666,1748945437194,-1769.54,0.00016712,2]
[363952667,1748945437204,-764.36,0.00016712,2]
[363952668,1748945437214,-440.0,0.00016712,2]
[363952669,1748945437223,-390.0,0.00016712,2]
[363952670,1748945437233,-440.0,0.00016712,2]
[363952671,1748945437243,-430.0,0.00016712,2]
[363952672,1748945437253,-814.68,0.00016712,2]
[363952673,1748945437262,-440.0,0.00016712,2]
[363952674,1748945437271,-1480.6,0.00016712,2]
[363952675,1748945437281,-440.0,0.00016712,2]
[363952676,1748945437291,-440.0,0.00016712,2]
[363952677,1748945437300,-440.0,0.00016712,2]
[363952678,1748945437310,-793.63,0.00016712,2]
[363952679,1748945437319,-440.0,0.00016712,2]
[363952680,1748945437329,-440.0,0.00016712,2]
[363952681,1748945437338,-435.39267255,0.00016712,2]
[363952682,1748945437348,-450.0,0.00016712,2]
[363952683,1748945437358,-379.26708582,0.00016712,2]
[363952684,1748945437367,-1408.68,0.00016712,2]
[363952685,1748945437378,-470.69,0.00016712,2]
[363952686,1748945437387,-251.98230253,0.00016712,2]
[363952687,1748945437398,-440.0,0.00016712,2]
[363952688,1748945437407,-440.0,0.00016712,2]
[363952689,1748945437417,-522.08,0.00016712,2]
[363952690,1748945437427,-1348.84,0.00016712,2]
[363952691,1748945437436,-440.0,0.00016712,2]
[363952692,1748945437446,-187.29422225,0.00016712,2]
[363952693,1748945437456,-564.73,0.00016712,2]
[363952694,1748945437465,-1238.06,0.00016712,2]
[363952695,1748945437475,-1259.13,0.00016712,2]
[363952696,1748945437485,-390.0,0.00016712,2]
[363952697,1748945437495,-364.2046547,0.00016712,2]
[363952698,1748945437505,-440.0,0.00016712,2]
[363952699,1748945437514,-440.0,0.00016712,2]
[363952700,1748945437524,-589.57,0.00016712,2]
[363952701,1748945437533,-440.0,0.00016712,2]
[363952702,1748945437543,-569.94257755,0.00016809,2]
[363952703,1748945437552,-502.24366344,0.00016985,2]
[363952704,1748945437561,-647.62,0.00016985,2]
[363952705,1748945437661,-647.62,0.00016985,2]
[363952706,1748945437684,-49481.52240601,0.00016985,2]
[363952707,1748945437694,-12670.76136593,0.00016985,3]
[363952708,1748945437703,-410.0,0.00016986,2]
[363952709,1748945437712,-426.60734563,0.00016986,2]
[363952710,1748945437722,-410.0,0.00016986,2]
[363952711,1748945437731,-440.0,0.00016986,2]
[363952712,1748945437740,-440.0,0.00016986,2]
[363952713,1748945437750,-410.0,0.00016986,2]
[363952714,1748945437760,-580.7,0.00016986,2]
[363952715,1748945437770,-440.0,0.00016986,2]
[363952716,1748945437780,-440.0,0.00016986,2]
[363952717,1748945437790,-440.0,0.00016986,2]
[363952718,1748945437800,-410.0,0.00016986,2]
[363952719,1748945437809,-224.4738317,0.00016986,2]
[363952720,1748945437819,-440.0,0.00016986,2]
[363952721,1748945437828,-412.24,0.00016986,2]
[363952722,1748945437838,-440.0,0.00016986,2]
[363952723,1748945437847,-440.0,0.00016986,2]
[363952724,1748945437856,-440.0,0.00016986,2]
[363952725,1748945437865,-440.0,0.00016986,2]
[363952726,1748945437875,-429.4963616,0.00016986,2]
[363952727,1748945437884,-410.0,0.00016986,2]
[363952728,1748945437895,-440.0,0.00016986,2]
[363952729,1748945437904,-440.0,0.00016986,2]
[363952730,1748945437917,-440.0,0.00016986,2]
[363952731,1748945437926,-440.0,0.00016986,2]
[363952732,1748945437935,-440.0,0.00016986,2]
[363952733,1748945437945,-440.0,0.00016986,2]
[363952734,1748945437955,-440.0,0.00016986,2]
[363952735,1748945437965,-440.0,0.00016986,2]
[363952736,1748945437974,-449.52,0.00016986,2]
[363952738,1748945437984,-440.0,0.00016986,2]
[363952739,1748945437994,-440.0,0.00016986,2]
[363952740,1748945438004,-400.0,0.00016986,2]
[363952741,1748945438014,-410.0,0.00016986,2]
[363952742,1748945438031,-358.1520334,0.00016986,2]
[363952743,1748945438044,-440.0,0.00016986,2]
[363952744,1748945438054,-440.0,0.00016986,2]
[363952745,1748945438064,-337.71069959,0.00016986,2]
[363952746,1748945438074,-440.0,0.00016986,2]
[363952747,1748945438084,-896.47,0.00016986,2]
[363952749,1748945438097,-410.0,0.00016986,2]
[363952751,1748945438107,-440.0,0.00016986,2]
[363952752,1748945438117,-377.67945617,0.00016986,2]
[363952753,1748945438127,-410.0,0.00016986,2]
[363952754,1748945438136,-517.32,0.00016986,2]
[363952755,1748945438147,-440.0,0.00016986,2]
[363952756,1748945438156,-440.0,0.00016986,2]
[363952757,1748945438166,-565.4213844,0.00016986,2]
[363952759,1748945438176,-355.25588736,0.00016986,2]
[363952761,1748945438186,-452.66,0.00016986,2]
[363952763,1748945438195,-440.0,0.00016986,2]
[363952765,1748945438205,-245.44399174,0.00016986,2]
[363952767,1748945438215,-440.0,0.00016986,2]
[363952769,1748945438225,-440.0,0.00016986,2]
[363952771,1748945438234,-442.41,0.00016986,2]
[363952772,1748945438243,-1275.44,0.00016986,2]
[363952773,1748945438253,-386.73429613,0.00016986,2]
[363952774,1748945438262,-2083.51,0.00016986,2]
[363952776,1748945438271,-560.01,0.00016986,2]
[363952778,1748945438282,-1680.21,0.00016986,2]
[363952780,1748945438292,-440.0,0.00016986,2]
[363952782,1748945438302,-440.0,0.00016986,2]
[363952784,1748945438311,-408.13232613,0.00016986,2]
[363952786,1748945438321,-531.9,0.00016986,2]
[363952789,1748945438332,-410.0,0.00016986,2]
[363952790,1748945438343,-440.0,0.00016986,2]
[363952792,1748945438352,-440.0,0.00016986,2]
[363952794,1748945438362,-498.31,0.00016986,2]
[363952796,1748945438372,-440.0,0.00016986,2]
[363952798,1748945438381,-440.0,0.00016986,2]
[363952800,1748945438391,-440.0,0.00016986,2]
[363952803,1748945438401,-469.85050634,0.00016986,2]
[363952804,1748945438411,-440.0,0.00016986,2]
[363952806,1748945438420,-181.28,0.00016986,2]
[363952808,1748945438430,-2838.58,0.00016986,2]
[363952810,1748945438440,-440.0,0.00016986,2]
[363952812,1748945438449,-440.0,0.00016986,2]
[363952814,1748945438459,-440.0,0.00016986,2]
[363952816,1748945438469,-190.52098603,0.00016986,2]
[363952818,1748945438478,-380.0,0.00016986,2]
[363952820,1748945438487,-440.0,0.00016986,2]
[363952822,1748945438497,-459.56,0.00016986,2]
[363952825,1748945438506,-3028.77,0.00016986,2]
[363952827,1748945438516,-440.0,0.00016986,2]
[363952829,1748945438526,-2422.06,0.00016986,2]
[363952831,1748945438536,-440.0,0.00016986,2]
[363952833,1748945438546,-440.0,0.00016986,2]
[363952835,1748945438556,-1859.59,0.00016986,2]
[363952837,1748945438565,-400.0,0.00016986,2]
[363952839,1748945438575,-1140.72,0.00016986,2]
[363952841,1748945438585,-440.0,0.00016986,2]
[363952843,1748945438594,-518.89,0.00016986,2]
[363952845,1748945438604,-512.59,0.00016986,2]
[363952847,1748945438613,-440.0,0.00016986,2]
[363952849,1748945438623,-1769.54,0.00016986,2]
[363952851,1748945438633,-764.36,0.00016986,2]
[363952853,1748945438643,-440.0,0.00016986,2]
[363952855,1748945438652,-370.0,0.00016986,2]
[363952859,1748945438662,-814.68,0.00016986,2]
[363952862,1748945438672,-440.0,0.00016986,2]
[363952865,1748945438682,-1480.6,0.00016986,2]
[363952867,1748945438691,-440.0,0.00016986,2]
[363952869,1748945438701,-440.0,0.00016986,2]
[363952871,1748945438710,-440.0,0.00016986,2]